[Event "Late-Titled-Tuesday-Blitz-May-07-2024"]
[Site "Chess.com"]
[Date "2024.05.07"]
[Round "9"]
[White "manitodeplomo"]
[Black "WPWPWP-2015"]
[Result "1-0"]
[WhiteElo "2594"]
[BlackElo "2442"]
[TimeControl "180+1"]
[EndTime "15:46:49 PDT"]
[Termination "manitodeplomo won by checkmate"]

1. d4 {[%clk 0:02:59.6]} 1... Nf6 {[%clk 0:02:57.4]} 2. c4 {[%clk 0:02:59.5]}
2... e6 {[%clk 0:02:53.4]} 3. Nf3 {[%clk 0:02:59.2]} 3... b6 {[%clk 0:02:52.4]}
4. g3 {[%clk 0:02:58.9]} 4... Ba6 {[%clk 0:02:52.1]} 5. Qc2 {[%clk 0:02:58.2]}
5... Bb7 {[%clk 0:02:51.6]} 6. Bg2 {[%clk 0:02:58.1]} 6... Be7 {[%clk
0:02:51.4]} 7. Nc3 {[%clk 0:02:56.6]} 7... O-O {[%clk 0:02:48.8]} 8. e4 {[%clk
0:02:55.6]} 8... Ne8 {[%clk 0:02:48.6]} 9. O-O {[%clk 0:02:54.6]} 9... d6 {[%clk
0:02:48.6]} 10. d5 {[%clk 0:02:36]} 10... e5 {[%clk 0:02:45.4]} 11. Ne1 {[%clk
0:02:34.7]} 11... Nd7 {[%clk 0:02:43.7]} 12. Nd3 {[%clk 0:02:34.5]} 12... c5
{[%clk 0:02:35.7]} 13. Be3 {[%clk 0:02:14.3]} 13... Bc8 {[%clk 0:02:32]} 14. f4
{[%clk 0:02:10.5]} 14... f6 {[%clk 0:02:29.4]} 15. Bh3 {[%clk 0:02:05.7]} 15...
Nb8 {[%clk 0:02:26.6]} 16. Be6+ {[%clk 0:02:04.8]} 16... Bxe6 {[%clk 0:02:22.6]}
17. dxe6 {[%clk 0:02:05.7]} 17... Nc7 {[%clk 0:02:20.2]} 18. f5 {[%clk
0:02:05.4]} 18... b5 {[%clk 0:02:13]} 19. cxb5 {[%clk 0:01:55.9]} 19... d5
{[%clk 0:01:54.2]} 20. Nxd5 {[%clk 0:01:50.8]} 20... Nxd5 {[%clk 0:01:49.6]} 21.
exd5 {[%clk 0:01:50]} 21... Qxd5 {[%clk 0:01:48.8]} 22. Nxc5 {[%clk 0:01:44.6]}
22... Rc8 {[%clk 0:01:35.4]} 23. b4 {[%clk 0:01:44.3]} 23... Qd8 {[%clk
0:01:08.9]} 24. a4 {[%clk 0:01:26.6]} 24... a6 {[%clk 0:01:06.8]} 25. Rfd1
{[%clk 0:01:14.4]} 25... Qb6 {[%clk 0:01:06.5]} 26. Qe4 {[%clk 0:01:14.7]} 26...
Ra7 {[%clk 0:00:50.3]} 27. Nd7 {[%clk 0:00:53.8]} 27... Qb7 {[%clk 0:00:47.3]}
28. Qxb7 {[%clk 0:00:52.1]} 28... Rxb7 {[%clk 0:00:47.1]} 29. Nxb8 {[%clk
0:00:52.1]} 29... Rcxb8 {[%clk 0:00:41]} 30. bxa6 {[%clk 0:00:52]} 30... Rxb4
{[%clk 0:00:41.1]} 31. a7 {[%clk 0:00:51.8]} 31... Ra8 {[%clk 0:00:39.8]} 32.
Rdb1 {[%clk 0:00:48.2]} 32... Rc4 {[%clk 0:00:25.8]} 33. Rb8+ {[%clk 0:00:46.1]}
33... Rc8 {[%clk 0:00:25.8]} 34. Rxc8+ {[%clk 0:00:44.9]} 34... Rxc8 {[%clk
0:00:25.4]} 35. Rb1 {[%clk 0:00:45.5]} 35... Bd6 {[%clk 0:00:25.8]} 36. Rb6
{[%clk 0:00:36.9]} 36... Bc7 {[%clk 0:00:18.9]} 37. Rc6 {[%clk 0:00:36.5]} 37...
h5 {[%clk 0:00:12.8]} 38. Rxc7 {[%clk 0:00:35.9]} 38... Ra8 {[%clk 0:00:13.1]}
39. Rb7 {[%clk 0:00:34.7]} 39... Kh7 {[%clk 0:00:13.4]} 40. Rb8 {[%clk 0:00:34]}
40... h4 {[%clk 0:00:14.2]} 41. Rxa8 {[%clk 0:00:33.3]} 41... hxg3 {[%clk
0:00:13.9]} 42. Rh8+ {[%clk 0:00:32.7]} 42... Kxh8 {[%clk 0:00:13.5]} 43. a8=Q+
{[%clk 0:00:32.8]} 43... Kh7 {[%clk 0:00:14.4]} 44. Qg2 {[%clk 0:00:32.2]} 44...
e4 {[%clk 0:00:13.3]} 45. Qxg3 {[%clk 0:00:31.1]} 45... g5 {[%clk 0:00:12.3]}
46. Bxg5 {[%clk 0:00:26.1]} 46... e3 {[%clk 0:00:11.8]} 47. Bxe3 {[%clk
0:00:25.1]} 47... Kh8 {[%clk 0:00:11.9]} 48. e7 {[%clk 0:00:23.6]} 48... Kh7
{[%clk 0:00:12.3]} 49. Qg6+ {[%clk 0:00:23.1]} 49... Kh8 {[%clk 0:00:12.6]} 50.
e8=Q# {[%clk 0:00:23.8]} 1-0

[Event "Late-Titled-Tuesday-Blitz-May-07-2024"]
[Site "Chess.com"]
[Date "2024.05.07"]
[Round "9"]
[White "sergiochess83"]
[Black "GianmarcoVaR"]
[Result "0-1"]
[WhiteElo "2888"]
[BlackElo "2798"]
[TimeControl "180+1"]
[EndTime "15:46:51 PDT"]
[Termination "GianmarcoVaR won by checkmate"]

1. d4 {[%clk 0:02:55.4]} 1... Nf6 {[%clk 0:02:58.9]} 2. c4 {[%clk 0:02:53.6]}
2... g6 {[%clk 0:02:57.7]} 3. Nc3 {[%clk 0:02:51.3]} 3... Bg7 {[%clk 0:02:57.9]}
4. e4 {[%clk 0:02:50.8]} 4... d6 {[%clk 0:02:58.1]} 5. Be2 {[%clk 0:02:51.2]}
5... O-O {[%clk 0:02:58.6]} 6. Be3 {[%clk 0:02:51.8]} 6... e5 {[%clk 0:02:44.9]}
7. d5 {[%clk 0:02:48.4]} 7... c6 {[%clk 0:02:40.8]} 8. Nf3 {[%clk 0:02:23.2]}
8... Ng4 {[%clk 0:02:25.1]} 9. Bc1 {[%clk 0:02:21.6]} 9... f5 {[%clk 0:02:15.6]}
10. O-O {[%clk 0:02:11.3]} 10... Nf6 {[%clk 0:02:07.9]} 11. Nd2 {[%clk
0:01:42.2]} 11... f4 {[%clk 0:01:53.8]} 12. c5 {[%clk 0:01:40]} 12... cxd5
{[%clk 0:01:47.1]} 13. Nxd5 {[%clk 0:01:34.9]} 13... dxc5 {[%clk 0:01:42.3]} 14.
Bc4 {[%clk 0:01:32.3]} 14... Kh8 {[%clk 0:01:35.6]} 15. Nb3 {[%clk 0:01:26.8]}
15... Nxe4 {[%clk 0:01:33.2]} 16. Re1 {[%clk 0:01:16.6]} 16... Nd6 {[%clk
0:01:33.3]} 17. Bf1 {[%clk 0:01:16.3]} 17... b6 {[%clk 0:01:32.6]} 18. Bd2
{[%clk 0:01:12.8]} 18... Nc6 {[%clk 0:01:26.6]} 19. Bc3 {[%clk 0:01:11.2]} 19...
Be6 {[%clk 0:01:23.6]} 20. g3 {[%clk 0:00:59]} 20... Nd4 {[%clk 0:00:48.6]} 21.
Bg2 {[%clk 0:00:42]} 21... f3 {[%clk 0:00:42.3]} 22. Bxd4 {[%clk 0:00:39.9]}
22... cxd4 {[%clk 0:00:39.1]} 23. Bxf3 {[%clk 0:00:39.7]} 23... e4 {[%clk
0:00:26]} 24. Nf4 {[%clk 0:00:24.5]} 24... Bxb3 {[%clk 0:00:17]} 25. axb3 {[%clk
0:00:25.4]} 25... Rxf4 {[%clk 0:00:12.1]} 26. gxf4 {[%clk 0:00:26.3]} 26... exf3
{[%clk 0:00:12.6]} 27. Qxf3 {[%clk 0:00:27.2]} 27... a5 {[%clk 0:00:08.6]} 28.
Rac1 {[%clk 0:00:20.8]} 28... Qg8 {[%clk 0:00:04.3]} 29. Rc7 {[%clk 0:00:14.8]}
29... Nf5 {[%clk 0:00:03.8]} 30. Qc6 {[%clk 0:00:07.5]} 30... Rf8 {[%clk
0:00:02.3]} 31. Rd7 {[%clk 0:00:05]} 31... Qxb3 {[%clk 0:00:02]} 32. Qb7 {[%clk
0:00:01.6]} 32... Qb4 {[%clk 0:00:02.1]} 33. Re6 {[%clk 0:00:01.7]} 33... d3
{[%clk 0:00:02.1]} 34. Red6 {[%clk 0:00:01.9]} 34... Nxd6 {[%clk 0:00:01.4]} 35.
Rxd6 {[%clk 0:00:02.1]} 35... Qxf4 {[%clk 0:00:01.4]} 36. Qe7 {[%clk 0:00:03]}
36... Qxf2+ {[%clk 0:00:01.4]} 37. Kh1 {[%clk 0:00:03.9]} 37... Qf1# {[%clk
0:00:02.3]} 0-1

[Event "Late-Titled-Tuesday-Blitz-May-07-2024"]
[Site "Chess.com"]
[Date "2024.05.07"]
[Round "9"]
[White "Temirlan_Baltabaev"]
[Black "ExchangeAB"]
[Result "1-0"]
[WhiteElo "2562"]
[BlackElo "2411"]
[TimeControl "180+1"]
[EndTime "15:46:53 PDT"]
[Termination "Temirlan_Baltabaev won by resignation"]

1. d4 {[%clk 0:03:00.9]} 1... d5 {[%clk 0:02:59.9]} 2. Nf3 {[%clk 0:03:01]} 2...
c6 {[%clk 0:03:00.8]} 3. g3 {[%clk 0:03:01.2]} 3... Nf6 {[%clk 0:03:00.1]} 4.
Bg2 {[%clk 0:03:01.6]} 4... Bf5 {[%clk 0:03:00.7]} 5. O-O {[%clk 0:03:01.5]}
5... e6 {[%clk 0:03:01.3]} 6. c4 {[%clk 0:03:01.3]} 6... h6 {[%clk 0:03:02]} 7.
b3 {[%clk 0:03:00.1]} 7... Be7 {[%clk 0:03:00]} 8. Bb2 {[%clk 0:03:00.3]} 8...
O-O {[%clk 0:03:00.5]} 9. Nc3 {[%clk 0:03:00.3]} 9... Ne4 {[%clk 0:03:01.2]} 10.
Ne5 {[%clk 0:02:56.3]} 10... Nxc3 {[%clk 0:02:59.5]} 11. Bxc3 {[%clk 0:02:56.1]}
11... Nd7 {[%clk 0:03:00.2]} 12. Re1 {[%clk 0:02:50.7]} 12... Nxe5 {[%clk
0:02:58.8]} 13. dxe5 {[%clk 0:02:50.7]} 13... dxc4 {[%clk 0:02:57.7]} 14. bxc4
{[%clk 0:02:50.3]} 14... Qxd1 {[%clk 0:02:51.5]} 15. Raxd1 {[%clk 0:02:46.7]}
15... Rfd8 {[%clk 0:02:51.3]} 16. e4 {[%clk 0:02:44.4]} 16... Bg4 {[%clk
0:02:50]} 17. f3 {[%clk 0:02:39.9]} 17... Bc5+ {[%clk 0:02:49.7]} 18. Kf1 {[%clk
0:02:39.8]} 18... Bh5 {[%clk 0:02:49.9]} 19. Ke2 {[%clk 0:02:34.7]} 19... Kf8
{[%clk 0:02:46.1]} 20. g4 {[%clk 0:02:22.2]} 20... Bg6 {[%clk 0:02:45.8]} 21. f4
{[%clk 0:02:13.9]} 21... Ke7 {[%clk 0:02:34.6]} 22. f5 {[%clk 0:02:12.1]} 22...
Bh7 {[%clk 0:02:34.7]} 23. Kf3 {[%clk 0:02:06.3]} 23... Rxd1 {[%clk 0:02:29.9]}
24. Rxd1 {[%clk 0:02:06.1]} 24... Rd8 {[%clk 0:02:30.4]} 25. Rxd8 {[%clk
0:02:04.6]} 25... Kxd8 {[%clk 0:02:30]} 26. h4 {[%clk 0:02:03.1]} 26... Be7
{[%clk 0:02:22.5]} 27. Kg3 {[%clk 0:02:00.6]} 27... Bg8 {[%clk 0:02:12.6]} 28.
f6 {[%clk 0:01:57.2]} 28... Bf8 {[%clk 0:02:09.2]} 29. g5 {[%clk 0:01:54.8]}
29... hxg5 {[%clk 0:02:06.4]} 30. hxg5 {[%clk 0:01:54.7]} 30... Bh7 {[%clk
0:02:06.3]} 31. Kf4 {[%clk 0:01:52.2]} 31... Bg6 {[%clk 0:02:05.8]} 32. Bf3
{[%clk 0:01:51.9]} 32... Kd7 {[%clk 0:02:03.3]} 33. Bd4 {[%clk 0:01:49.9]} 33...
gxf6 {[%clk 0:02:01]} 34. exf6 {[%clk 0:01:47.3]} 34... Bd6+ {[%clk 0:01:47.5]}
35. e5 {[%clk 0:01:44.2]} 35... Bb8 {[%clk 0:01:47.5]} 36. Bc5 {[%clk
0:01:37.1]} 36... a5 {[%clk 0:01:43.3]} 37. Be7 {[%clk 0:01:34.4]} 37... b5
{[%clk 0:01:35.3]} 38. cxb5 {[%clk 0:01:27.7]} 38... cxb5 {[%clk 0:01:36.2]} 39.
Bc5 {[%clk 0:01:17.5]} 39... Bc7 {[%clk 0:01:25.8]} 40. Be4 {[%clk 0:01:15.1]}
40... Bxe4 {[%clk 0:01:10.7]} 41. Kxe4 {[%clk 0:01:15.1]} 41... Ke8 {[%clk
0:01:07.4]} 42. Kd4 {[%clk 0:01:12.8]} 42... a4 {[%clk 0:01:02.1]} 43. Bd6
{[%clk 0:01:08.1]} 43... Bb6+ {[%clk 0:01:00.9]} 44. Kc3 {[%clk 0:01:02.2]}
44... Be3 {[%clk 0:00:57]} 45. Kb4 {[%clk 0:01:01.5]} 45... Bxg5 {[%clk
0:00:56.9]} 46. Kxb5 {[%clk 0:01:01]} 46... Kd7 {[%clk 0:00:56.8]} 47. Bb4
{[%clk 0:00:53.9]} 47... Bc1 {[%clk 0:00:26.7]} 48. Kxa4 {[%clk 0:00:51.3]}
48... Kc6 {[%clk 0:00:26.5]} 49. Bd6 {[%clk 0:00:42.4]} 49... Bb2 {[%clk
0:00:12.9]} 50. Kb4 {[%clk 0:00:41.4]} 50... Kd5 {[%clk 0:00:12.4]} 51. a4
{[%clk 0:00:39.8]} 51... Bxe5 {[%clk 0:00:12.1]} 52. Bxe5 {[%clk 0:00:39.4]}
52... Kxe5 {[%clk 0:00:13]} 53. Kb5 {[%clk 0:00:39.5]} 53... Kd6 {[%clk
0:00:12.2]} 54. Kb6 {[%clk 0:00:39.1]} 54... e5 {[%clk 0:00:12.5]} 55. a5 {[%clk
0:00:39.4]} 55... e4 {[%clk 0:00:13.4]} 56. a6 {[%clk 0:00:39.9]} 56... e3
{[%clk 0:00:14.3]} 57. a7 {[%clk 0:00:39.5]} 57... e2 {[%clk 0:00:15.2]} 58.
a8=Q {[%clk 0:00:39.8]} 58... e1=Q {[%clk 0:00:14.8]} 59. Qd8+ {[%clk
0:00:40.1]} 59... Ke6 {[%clk 0:00:14.1]} 60. Qe7+ {[%clk 0:00:40.8]} 60... Kf5
{[%clk 0:00:14.1]} 61. Qxe1 {[%clk 0:00:41.3]} 1-0

[Event "Late-Titled-Tuesday-Blitz-May-07-2024"]
[Site "Chess.com"]
[Date "2024.05.07"]
[Round "9"]
[White "SHIVACalypso"]
[Black "Der_Balak_3Halak"]
[Result "1-0"]
[WhiteElo "2534"]
[BlackElo "2395"]
[TimeControl "180+1"]
[EndTime "15:46:58 PDT"]
[Termination "SHIVACalypso won by resignation"]

1. d4 {[%clk 0:03:00.9]} 1... d5 {[%clk 0:02:59.8]} 2. c4 {[%clk 0:02:59.4]}
2... c6 {[%clk 0:03:00.2]} 3. Nf3 {[%clk 0:02:57.2]} 3... Nf6 {[%clk 0:03:00.4]}
4. e3 {[%clk 0:02:57.8]} 4... Bf5 {[%clk 0:02:59.9]} 5. Bd3 {[%clk 0:02:58.2]}
5... Bxd3 {[%clk 0:02:59.1]} 6. Qxd3 {[%clk 0:02:59.1]} 6... e6 {[%clk
0:02:59.7]} 7. O-O {[%clk 0:02:55.7]} 7... Bd6 {[%clk 0:02:59.9]} 8. b3 {[%clk
0:02:56]} 8... a5 {[%clk 0:02:59.2]} 9. Nbd2 {[%clk 0:02:55.6]} 9... O-O {[%clk
0:02:59.5]} 10. e4 {[%clk 0:02:55.1]} 10... dxe4 {[%clk 0:02:59.1]} 11. Nxe4
{[%clk 0:02:56]} 11... Nxe4 {[%clk 0:03:00]} 12. Qxe4 {[%clk 0:02:56.9]} 12...
h6 {[%clk 0:02:56.9]} 13. Bb2 {[%clk 0:02:53.6]} 13... Nd7 {[%clk 0:02:56.9]}
14. Rad1 {[%clk 0:02:53.8]} 14... Nf6 {[%clk 0:02:56.6]} 15. Qe2 {[%clk
0:02:53.3]} 15... Qe7 {[%clk 0:02:48.2]} 16. Ne5 {[%clk 0:02:51.8]} 16... a4
{[%clk 0:02:42.5]} 17. Ng4 {[%clk 0:02:50.7]} 17... axb3 {[%clk 0:02:32.5]} 18.
axb3 {[%clk 0:02:50.4]} 18... Ra2 {[%clk 0:02:29.9]} 19. Nxf6+ {[%clk
0:02:50.6]} 19... Qxf6 {[%clk 0:02:28.9]} 20. Ra1 {[%clk 0:02:51.5]} 20... Rfa8
{[%clk 0:02:13]} 21. g3 {[%clk 0:02:42.6]} 21... c5 {[%clk 0:02:04]} 22. Qd2
{[%clk 0:02:34.7]} 22... cxd4 {[%clk 0:01:59]} 23. Qxd4 {[%clk 0:02:33.9]} 23...
Rxa1 {[%clk 0:01:54]} 24. Rxa1 {[%clk 0:02:31.6]} 24... Rxa1+ {[%clk 0:01:53.5]}
25. Bxa1 {[%clk 0:02:32.5]} 25... Qxd4 {[%clk 0:01:46.8]} 26. Bxd4 {[%clk
0:02:33.4]} 26... e5 {[%clk 0:01:47.3]} 27. Be3 {[%clk 0:02:32.4]} 27... f5
{[%clk 0:01:46.6]} 28. Kf1 {[%clk 0:02:31.4]} 28... Kf7 {[%clk 0:01:46.4]} 29.
Ke2 {[%clk 0:02:31.6]} 29... Ke6 {[%clk 0:01:46.5]} 30. Kd3 {[%clk 0:02:31.7]}
30... e4+ {[%clk 0:01:46]} 31. Kd4 {[%clk 0:02:30.2]} 31... b6 {[%clk
0:01:44.4]} 32. Kc3 {[%clk 0:02:30.4]} 32... Bc7 {[%clk 0:01:37.5]} 33. Kb4
{[%clk 0:02:30.6]} 33... g5 {[%clk 0:01:33.4]} 34. Kb5 {[%clk 0:02:25.2]} 34...
f4 {[%clk 0:01:33.6]} 35. Bd4 {[%clk 0:02:22.2]} 35... Kd7 {[%clk 0:01:03.8]}
36. b4 {[%clk 0:02:12.7]} 36... h5 {[%clk 0:01:02.7]} 37. gxf4 {[%clk 0:01:49]}
37... gxf4 {[%clk 0:01:01.3]} 38. h3 {[%clk 0:01:39.3]} 38... h4 {[%clk
0:00:49.5]} 39. Bf6 {[%clk 0:01:30]} 39... Bd8 {[%clk 0:00:33.7]} 40. Bd4 {[%clk
0:01:20.6]} 40... Bc7 {[%clk 0:00:24.6]} 41. Ka6 {[%clk 0:01:19.7]} 41... Kc8
{[%clk 0:00:17.4]} 42. Ka7 {[%clk 0:01:15.4]} 42... Bd6 {[%clk 0:00:15.3]} 43.
b5 {[%clk 0:01:09.4]} 43... Bc7 {[%clk 0:00:15.2]} 44. c5 {[%clk 0:01:05]} 44...
bxc5 {[%clk 0:00:15.9]} 45. Bxc5 {[%clk 0:01:05.5]} 45... Kd7 {[%clk 0:00:13.4]}
46. b6 {[%clk 0:01:05.4]} 46... Be5 {[%clk 0:00:11.3]} 47. b7 {[%clk 0:01:03.3]}
47... Kc6 {[%clk 0:00:11.8]} 48. Be7 {[%clk 0:00:55.9]} 48... e3 {[%clk
0:00:08]} 49. fxe3 {[%clk 0:00:53.1]} 49... fxe3 {[%clk 0:00:08.9]} 50. Bxh4
{[%clk 0:00:51.5]} 50... Kd5 {[%clk 0:00:08.7]} 51. Be1 {[%clk 0:00:46.8]} 51...
Ke4 {[%clk 0:00:04.5]} 52. b8=Q {[%clk 0:00:45.5]} 52... Bxb8+ {[%clk
0:00:04.7]} 53. Kxb8 {[%clk 0:00:45.5]} 53... Kf3 {[%clk 0:00:05.1]} 54. h4
{[%clk 0:00:45.5]} 54... Ke2 {[%clk 0:00:05.5]} 55. Ba5 {[%clk 0:00:45.3]} 55...
Kf3 {[%clk 0:00:04.5]} 56. h5 {[%clk 0:00:45.8]} 56... e2 {[%clk 0:00:04.3]} 57.
h6 {[%clk 0:00:45.8]} 1-0

[Event "Late-Titled-Tuesday-Blitz-May-07-2024"]
[Site "Chess.com"]
[Date "2024.05.07"]
[Round "9"]
[White "WilsonPalencia21"]
[Black "NMJeevanK"]
[Result "1-0"]
[WhiteElo "2582"]
[BlackElo "2749"]
[TimeControl "180+1"]
[EndTime "15:46:59 PDT"]
[Termination "WilsonPalencia21 won by resignation"]

1. d4 {[%clk 0:02:59.5]} 1... h5 {[%clk 0:03:00.9]} 2. c4 {[%clk 0:02:58.5]}
2... a5 {[%clk 0:03:00.5]} 3. Nc3 {[%clk 0:02:58.1]} 3... Nf6 {[%clk 0:03:00.2]}
4. e4 {[%clk 0:02:58.1]} 4... d6 {[%clk 0:03:00.7]} 5. f3 {[%clk 0:02:58]} 5...
Nc6 {[%clk 0:02:59.5]} 6. Be3 {[%clk 0:02:57.8]} 6... e5 {[%clk 0:02:59.4]} 7.
d5 {[%clk 0:02:57.9]} 7... Ne7 {[%clk 0:02:59.4]} 8. Qd2 {[%clk 0:02:55.6]} 8...
Ng6 {[%clk 0:02:59.7]} 9. Bd3 {[%clk 0:02:36.6]} 9... h4 {[%clk 0:02:58.3]} 10.
Nge2 {[%clk 0:02:36]} 10... h3 {[%clk 0:02:58.1]} 11. g3 {[%clk 0:02:32.2]}
11... b6 {[%clk 0:02:54.6]} 12. O-O-O {[%clk 0:02:31.9]} 12... Bd7 {[%clk
0:02:50.9]} 13. Kb1 {[%clk 0:02:31.4]} 13... a4 {[%clk 0:02:47.7]} 14. Rhf1
{[%clk 0:02:30.4]} 14... a3 {[%clk 0:02:45.3]} 15. b3 {[%clk 0:02:27]} 15... Qb8
{[%clk 0:02:39.5]} 16. Nb5 {[%clk 0:02:23.5]} 16... Bxb5 {[%clk 0:02:39.4]} 17.
cxb5 {[%clk 0:02:23.4]} 17... Nd7 {[%clk 0:02:36.2]} 18. Rc1 {[%clk 0:02:18.5]}
18... Nc5 {[%clk 0:02:35.2]} 19. b4 {[%clk 0:02:18.5]} 19... Nxd3 {[%clk
0:02:21.7]} 20. Qxd3 {[%clk 0:02:18.7]} 20... Be7 {[%clk 0:02:20.6]} 21. Rc4
{[%clk 0:02:17.4]} 21... O-O {[%clk 0:02:17.5]} 22. Ng1 {[%clk 0:02:14]} 22...
Qc8 {[%clk 0:02:15.3]} 23. Rfc1 {[%clk 0:02:13.8]} 23... Bd8 {[%clk 0:02:08.4]}
24. Bxb6 {[%clk 0:02:12.5]} 24... Qb7 {[%clk 0:02:08.2]} 25. Bxc7 {[%clk
0:02:10.3]} 25... Qxb5 {[%clk 0:02:07.9]} 26. Bxd6 {[%clk 0:02:09.5]} 26... Re8
{[%clk 0:02:04.2]} 27. R4c3 {[%clk 0:02:02.9]} 27... Qa4 {[%clk 0:01:54]} 28. b5
{[%clk 0:01:49.9]} 28... Qa7 {[%clk 0:01:03.3]} 29. Rxa3 {[%clk 0:01:39.6]}
29... Ba5 {[%clk 0:01:03.1]} 30. Bb4 {[%clk 0:01:35.9]} 30... Qb6 {[%clk
0:01:00.9]} 31. Bxa5 {[%clk 0:01:18.9]} 31... Rxa5 {[%clk 0:01:01.8]} 32. Rxa5
{[%clk 0:01:19.3]} 32... Qxa5 {[%clk 0:01:02.2]} 33. Ne2 {[%clk 0:01:19]} 33...
Ra8 {[%clk 0:00:59.2]} 34. Nc3 {[%clk 0:01:18.1]} 34... Qb4+ {[%clk 0:00:59.3]}
35. Ka1 {[%clk 0:01:18]} 35... Ra3 {[%clk 0:00:58.5]} 36. Qc2 {[%clk 0:01:08.7]}
36... Nf8 {[%clk 0:00:42.1]} 37. Qb2 {[%clk 0:01:06.4]} 37... Qa5 {[%clk
0:00:42.3]} 38. b6 {[%clk 0:01:01.1]} 38... Nd7 {[%clk 0:00:42.1]} 39. b7 {[%clk
0:01:00.8]} 39... Nb8 {[%clk 0:00:42.2]} 40. Nb1 {[%clk 0:01:00.4]} 40... Ra4
{[%clk 0:00:21.2]} 41. Rc8+ {[%clk 0:00:59.3]} 41... Kh7 {[%clk 0:00:21.9]} 42.
Rxb8 {[%clk 0:00:53.7]} 42... Rb4 {[%clk 0:00:21.2]} 43. Rh8+ {[%clk 0:00:53.4]}
43... Kg6 {[%clk 0:00:17.2]} 44. b8=Q {[%clk 0:00:52.3]} 44... Rxb2 {[%clk
0:00:13.2]} 45. Qxb2 {[%clk 0:00:51.7]} 45... Qc7 {[%clk 0:00:08.1]} 46. Rb8
{[%clk 0:00:49.7]} 46... f6 {[%clk 0:00:07.6]} 47. Rb3 {[%clk 0:00:49.2]} 47...
Qd6 {[%clk 0:00:07.3]} 48. a4 {[%clk 0:00:48.7]} 48... Qa6 {[%clk 0:00:07.1]}
49. Ra3 {[%clk 0:00:49.1]} 49... Qa5 {[%clk 0:00:06.9]} 50. Qc3 {[%clk
0:00:48.5]} 50... Qa7 {[%clk 0:00:05.1]} 51. a5 {[%clk 0:00:48.8]} 51... Kh5
{[%clk 0:00:04.9]} 52. a6 {[%clk 0:00:48.5]} 52... Qg1 {[%clk 0:00:05.4]} 53.
Qd2 {[%clk 0:00:43.1]} 53... Qa7 {[%clk 0:00:03.8]} 54. Qe3 {[%clk 0:00:42.7]}
54... Qc7 {[%clk 0:00:01.7]} 55. a7 {[%clk 0:00:42.2]} 55... g5 {[%clk
0:00:02.3]} 56. g4+ {[%clk 0:00:40.7]} 56... Kg6 {[%clk 0:00:02]} 57. a8=Q
{[%clk 0:00:40.3]} 57... f5 {[%clk 0:00:02.9]} 58. Qc6+ {[%clk 0:00:38.2]} 58...
Qxc6 {[%clk 0:00:02.7]} 59. dxc6 {[%clk 0:00:38.7]} 59... Kh7 {[%clk 0:00:03.6]}
60. Qxg5 {[%clk 0:00:37.7]} 1-0

[Event "Late-Titled-Tuesday-Blitz-May-07-2024"]
[Site "Chess.com"]
[Date "2024.05.07"]
[Round "9"]
[White "CarlosjPineror"]
[Black "ChadBiryani"]
[Result "0-1"]
[WhiteElo "2642"]
[BlackElo "2562"]
[TimeControl "180+1"]
[EndTime "15:46:59 PDT"]
[Termination "ChadBiryani won on time"]

1. e4 {[%clk 0:03:00.9]} 1... c5 {[%clk 0:03:00]} 2. Nf3 {[%clk 0:03:00.3]} 2...
d6 {[%clk 0:03:00.4]} 3. d4 {[%clk 0:03:00.8]} 3... cxd4 {[%clk 0:03:00.5]} 4.
Nxd4 {[%clk 0:03:01.7]} 4... Nf6 {[%clk 0:03:00.5]} 5. Nc3 {[%clk 0:03:02.4]}
5... Nc6 {[%clk 0:03:00.2]} 6. Bg5 {[%clk 0:03:02.2]} 6... g6 {[%clk 0:03:00.5]}
7. Nxc6 {[%clk 0:02:07.2]} 7... bxc6 {[%clk 0:02:59.1]} 8. e5 {[%clk 0:02:07.7]}
8... dxe5 {[%clk 0:02:34.8]} 9. Qxd8+ {[%clk 0:02:06.7]} 9... Kxd8 {[%clk
0:02:35.7]} 10. Bc4 {[%clk 0:02:06.9]} 10... Ke8 {[%clk 0:02:24.4]} 11. O-O-O
{[%clk 0:02:06.1]} 11... Nd7 {[%clk 0:02:00.1]} 12. Rhe1 {[%clk 0:01:58.8]}
12... f6 {[%clk 0:01:59.2]} 13. Be3 {[%clk 0:01:50.1]} 13... h5 {[%clk
0:01:56.2]} 14. a4 {[%clk 0:00:42.9]} 14... Bh6 {[%clk 0:01:47.3]} 15. Bxh6
{[%clk 0:00:42]} 15... Rxh6 {[%clk 0:01:46]} 16. a5 {[%clk 0:00:42.6]} 16... Nc5
{[%clk 0:01:33.3]} 17. b4 {[%clk 0:00:42.3]} 17... Be6 {[%clk 0:01:31.4]} 18.
Bxe6 {[%clk 0:00:24.7]} 18... Nxe6 {[%clk 0:01:31]} 19. Ne4 {[%clk 0:00:25.4]}
19... Rb8 {[%clk 0:01:18]} 20. c3 {[%clk 0:00:25.1]} 20... c5 {[%clk 0:01:18.6]}
21. Nxc5 {[%clk 0:00:17.9]} 21... Nxc5 {[%clk 0:01:18.6]} 22. bxc5 {[%clk
0:00:18.8]} 22... Rb5 {[%clk 0:01:18.8]} 23. c6 {[%clk 0:00:13.6]} 23... Rc5
{[%clk 0:01:19]} 24. Kc2 {[%clk 0:00:13]} 24... Rxc6 {[%clk 0:01:19.1]} 25. Rb1
{[%clk 0:00:12.8]} 25... Ra6 {[%clk 0:01:08.8]} 26. Rb5 {[%clk 0:00:11.7]} 26...
Kf7 {[%clk 0:01:07.4]} 27. Rd1 {[%clk 0:00:11.9]} 27... Ke6 {[%clk 0:01:02]} 28.
Kb3 {[%clk 0:00:10.5]} 28... Rh8 {[%clk 0:01:01.7]} 29. c4 {[%clk 0:00:10.6]}
29... Rc8 {[%clk 0:01:00.1]} 30. Kb4 {[%clk 0:00:10.5]} 30... Rac6 {[%clk
0:00:56.6]} 31. Rc1 {[%clk 0:00:11.1]} 31... R8c7 {[%clk 0:00:56.1]} 32. c5
{[%clk 0:00:10.6]} 32... e4 {[%clk 0:00:56.1]} 33. Rb8 {[%clk 0:00:09.5]} 33...
f5 {[%clk 0:00:56.1]} 34. g3 {[%clk 0:00:09.3]} 34... Kf6 {[%clk 0:00:48]} 35.
Kb5 {[%clk 0:00:09.4]} 35... e5 {[%clk 0:00:40.3]} 36. a6 {[%clk 0:00:09.1]}
36... f4 {[%clk 0:00:38.7]} 37. Rb7 {[%clk 0:00:09.4]} 37... Kf5 {[%clk
0:00:34.7]} 38. Rxc7 {[%clk 0:00:08.7]} 38... Rxc7 {[%clk 0:00:35]} 39. c6
{[%clk 0:00:09.6]} 39... e3 {[%clk 0:00:33.5]} 40. f3 {[%clk 0:00:07.7]} 40...
g5 {[%clk 0:00:28.4]} 41. Kc5 {[%clk 0:00:06.7]} 41... e4 {[%clk 0:00:27.3]} 42.
fxe4+ {[%clk 0:00:01.9]} 42... Kxe4 {[%clk 0:00:27.2]} 43. gxf4 {[%clk
0:00:02.8]} 43... gxf4 {[%clk 0:00:27.4]} 44. Kd6 {[%clk 0:00:02.7]} 44... Rc8
{[%clk 0:00:27.2]} 45. c7 {[%clk 0:00:03.2]} 45... f3 {[%clk 0:00:26.8]} 46. Kc6
{[%clk 0:00:02]} 46... f2 {[%clk 0:00:23.1]} 47. Kb7 {[%clk 0:00:02.3]} 47...
Rxc7+ {[%clk 0:00:20.8]} 48. Kxc7 {[%clk 0:00:02.9]} 48... e2 {[%clk 0:00:21]}
49. Kb7 {[%clk 0:00:02.5]} 49... e1=Q {[%clk 0:00:21]} 0-1